Cogmind - Beta 16 @@@ ROGUE MODE // 2025.12.06 @ 21:59:14 Player: Zonalar Result: Destroyed by S-10 Pest with Light Assault Rifle Performance ------------- Evolutions (0) 0 Regions Visited (3) 600 Robots Destroyed (35) 175 Value Destroyed (775) 775 Prototype IDs (2) 40 Alien Tech Used (0) 0 Bonus (0) 0 TOTAL SCORE: 1590 Bonus ------- None Cogmind --------- Core Integrity 0/250 Matter 242/300 Energy 250/250 System Corruption 2% Temperature Cool (0) Movement Rolling (100) Location -10/Subcaves Parts ------- > --- POWER (1) -------- Ion Engine > --- PROPULSION (2) --- Compact Wheel Compact Wheel > --- UTILITY (2) ------ Large Storage Unit Seismic Detector > --- WEAPON (2) ------- Heavy Assault Rifle Heavy Assault Rifle > --- INVENTORY (15) --- Aluminum Leg Aluminum Leg Wheel Compact Wheel Improved Heat Sink Small Storage Unit Medium Matter Pod (1) Structural Scanner Sensor Array Improved Terrain Scanner Particle Gun Particle Gun Heavy Assault Rifle Heavy Assault Rifle Grenade Launcher Peak State ------------ > --- POWER ------------ Ion Engine > --- PROPULSION ------- Compact Wheel Compact Wheel > --- UTILITY ---------- Large Storage Unit Seismic Detector > --- WEAPON ----------- Heavy Assault Rifle Heavy Assault Rifle > --- INVENTORY -------- Aluminum Leg Aluminum Leg Compact Wheel Improved Heat Sink Small Storage Unit Medium Matter Pod Structural Scanner Sensor Array Improved Terrain Scanner Particle Gun Particle Gun Heavy Assault Rifle Heavy Assault Rifle Grenade Launcher [Rating: 11] Favorites ----------- Power Ion Engine Engine Ion Engine Propulsion Light Treads Treads Light Treads Wheel Compact Wheel Utility Large Storage Unit Device Seismic Detector Storage Large Storage Unit Processor Machine Analyzer Protection Light Armor Plating Weapon Small Laser Energy Gun Small Laser Energy Cannon Beam Cannon Ballistic Gun Heavy Assault Rifle Launcher Grenade Launcher Special Weapon Mining Laser Build | -11 -10 -10 -10 ------- Run | Yrd Mat Min Sub Slots Evolved . | . . . . Power . | . . . . Propulsion . | . . . . Utility . | . . . . Weapon . | . . . . Parts Attached 20 | 7 9 4 . Power 3 | 1 1 1 . Engine 3 | 1 1 1 . Core . | . . . . Reactor . | . . . . Propulsion 4 | 2 . 2 . Treads 2 | 2 . . . Leg . | . . . . Wheel 2 | . . 2 . Hover . | . . . . Flight . | . . . . Utility 6 | 2 3 1 . Device 2 | 1 . 1 . Storage 2 | 1 1 . . Processor 1 | . 1 . . Hackware . | . . . . Protection 1 | . 1 . . Artifact . | . . . . Weapon 7 | 2 5 . . Energy Gun 2 | 2 . . . Energy Cannon 1 | . 1 . . Ballistic Gun 2 | . 2 . . Ballistic Cannon . | . . . . Launcher 1 | . 1 . . Special Weapon 1 | . 1 . . Impact Weapon . | . . . . Slashing Weapon . | . . . . Piercing Weapon . | . . . . Special Melee Weapon . | . . . . Unidentified Prototypes . | . . . . Parts Lost 4 | . . 4 . Power 1 | . . 1 . Propulsion 2 | . . 2 . Utility 1 | . . 1 . Weapon . | . . . . Highest Loss Streak 3 | . . 3 . To Critical Strikes . | . . . . Average Backups 9 | 3 8 12 14 Power . | . . . . Propulsion 2 | 1 1 2 3 Utility 4 | . 3 6 6 Weapon 2 | 1 2 3 5 Tool/Special . | . . . . Unused Backups 13 | . 3 . 10 Power . | . . . . Propulsion 4 | . 1 . 3 Utility 3 | . . . 3 Weapon 6 | . 2 . 4 Tool/Special . | . . . . Average Slot Usage (%) 98 | . 99 97 100 Engine 13 | . 14 12 14 Treads 22 | . 27 8 . Wheel 5 | . . 18 28 Device 4 | . 2 9 14 Storage 14 | . 14 14 14 Processor 6 | . 8 . . Protection 2 | . 2 3 . Energy Gun 13 | . 18 . . Energy Cannon 1 | . 1 . . Ballistic Gun 8 | . 2 26 28 Launcher 4 | . 5 1 . Peak Build Rating 11 | 7 10 11 11 Average Rating 9 | 5 9 9 11 On Entrance 7 | . 7 10 11 Avg Prop Armor Cover (%) . | . . . . Naked Turns . | . . . . Heaviest Build 34 | 11 34 34 32 Greatest Support 40 | 40 40 40 32 Greatest Overweight (x) 1 | . . 1 . Average Overweight (x) . | . . . . Largest Inventory Capacity 15 | 8 15 15 15 Average Capacity 11 | 7 10 15 15 Most Carried 15 | 6 11 15 15 Average Carried 9 | 3 8 12 14 Final Capacity 15 | 8 15 15 15 Final Carried 15 | 5 11 14 15 Class Distribution -------------------- 100% | Mutant Dominant Class ---------------- Mutant | -10/Materials Mutant | -10/Mines Mutant | -10/Subcaves Resources | -11 -10 -10 -10 ----------- Run | Yrd Mat Min Sub Matter Collected 1014 | 270 278 446 20 Remotely . | . . . . Salvage Created 1124 | 139 620 345 20 Parts 67 | 8 41 16 2 Haulers Intercepted 1 | . 1 . . Recyclers Shooed 3 | . 3 . . Parts Field Recycled . | . . . . Retrieved Matter . | . . . . Parts Self-Destructed . | . . . . Prevented . | . . . . Parts Restored . | . . . . Kills | -11 -10 -10 -10 ------- Run | Yrd Mat Min Sub Combat Hostiles Destroyed 17 | . 11 6 . Guns 11 | . 5 6 . AOE 6 | . 6 . . Classes Destroyed 10 | 2 7 . 1 Builder 2 | . 1 1 . Tunneler 5 | 2 3 . . Hauler 1 | . 1 . . Recycler 4 | 1 2 1 . Mechanic 1 | . 1 . . Operator 2 | . 2 . . Watcher 3 | . 3 . . Swarmer 3 | . 3 . . Grunt 14 | . 8 6 . Artisan 1 | . . . 1 Best Kill Streak 6 | 2 6 2 . Combat Bots Only 3 | . 3 2 . Max Kills in Single Turn 1 | 1 1 1 1 Gunslinging . | . . . . Exploded 1 | . 1 . . Melee . | . . . . Uniques/NPCs Destroyed . | . . . . Combat | -11 -10 -10 -10 -------- Run | Yrd Mat Min Sub Hostile Shots Fired 101 | . 46 48 7 Missed 37 | . 17 17 3 Hits 64 | . 29 31 4 Projectile 64 | . 29 31 4 Damage Taken 1147 | . 660 455 32 Core 254 | . 123 114 17 Absorbed by Shields . | . . . . Regen/Repaired (Parts) 110 | . 110 . . Core Remaining (%) 100 | 100 . . . Volleys Fired 123 | 5 77 38 3 Largest 2 | 2 2 2 2 Hottest 100 | 80 100 46 46 Shots Fired 219 | 10 132 71 6 Gun 178 | 10 96 66 6 Cannon 7 | . 7 . . Launcher 33 | . 28 5 . Special 1 | . 1 . . Kinetic 72 | . . 66 6 Thermal 114 | 10 104 . . Explosive 33 | . 28 5 . Electromagnetic . | . . . . Robot Hit Streak 10 | 7 10 8 6 Robot Miss Streak 4 | 1 4 3 1 Penetration Max . | . . . . Secondary Targets 1 | . . 1 . Max Gunslinging Chain 1 | . . 1 . Shots Hit Robots 121 | 8 68 42 3 Core Hits 66 | 4 46 15 1 Critical Kills . | . . . . Critical Parts Destroyed . | . . . . Critical Strikes . | . . . . Melee Attacks . | . . . . Impact . | . . . . Slashing . | . . . . Piercing . | . . . . Sneak Attacks . | . . . . Combat Hostiles . | . . . . Follow-up Attacks . | . . . . Damage Inflicted 2360 | 90 1578 633 59 Guns 1413 | 90 631 633 59 Cannons 88 | . 88 . . Explosions 859 | . 859 . . Melee . | . . . . Ramming . | . . . . Kinetic 692 | . . 633 59 Thermal 809 | 90 719 . . Explosive 859 | . 859 . . Electromagnetic . | . . . . Impact . | . . . . Slashing . | . . . . Piercing . | . . . . Highest Corruption 2 | . 2 2 2 Average Corruption 1 | . 1 2 2 Corruption Purged . | . . . . Corruption Blocked . | . . . . Effects 18 | . 16 2 . Message Errors 3 | . 3 . . Matter Fused 7 | . 6 1 . Energy Discharges 3 | . 2 1 . Data Loss (minor) 1 | . 1 . . Data Loss (major) 1 | . 1 . . Misfires 1 | . 1 . . Weapon Failures 2 | . 2 . . Overload Shots . | . . . . Overflow Damage 57 | . 57 . . Projectiles . | . . . . Explosions 57 | . 57 . . Melee . | . . . . Knockbacks . | . . . . Impact . | . . . . Kinetic . | . . . . Secondary . | . . . . Self-Inflicted Damage 83 | . 78 5 . Shots 3 | . 2 1 . Rammed . | . . . . Targets Rammed . | . . . . Kicked . | . . . . Crushed . | . . . . Highest Temperature 243 | 36 243 51 . Average Temperature 43 | 19 48 22 . Received Heat Transfer 432 | . 168 252 12 Siege Activations . | . . . . Martial Activations . | . . . . Shielding Activations . | . . . . Robots Disrupted . | . . . . Combat Hostiles . | . . . . Robots Corrupted . | . . . . Combat Hostiles . | . . . . Parts Fried . | . . . . Impact Corruptions . | . . . . Robots Melted . | . . . . Combat Hostiles . | . . . . Parts Melted 2 | 1 1 . . Heat Transferred 1835 | 200 1635 . . Parts Sabotaged . | . . . . Parts Stolen . | . . . . Parts Stripped . | . . . . Power Chain Reactions . | . . . . Alert | -11 -10 -10 -10 ------- Run | Yrd Mat Min Sub Maximum Alert Level 1 | . 1 . . Low Security (%) 86 | 100 81 100 . Level 1 13 | . 18 . . Level 2 . | . . . . Level 3 . | . . . . Level 4 . | . . . . Level 5 . | . . . . High Security . | . . . . Max Security . | . . . . Peak Influence 233 | 5 233 116 . Initial 76 | . . 76 . Average 63 | . 73 45 . Influence Increases 799 | 15 582 172 30 Destroy 0b10 Robot/C 340 | . 220 120 . Destroy 0b10 Robot/NC 90 | 15 65 10 . Destroy Leader 98 | . 68 30 . Successful Hack 16 | . 16 . . Disable Machine 60 | . 60 . . Destroy Structure 150 | . 138 12 . Lose Combat Pursuer 45 | . 15 . 30 Influence Decreases 769 | 15 386 368 . Entered New Map 120 | . . 120 . Time Decay 609 | 15 386 208 . Lost Part 40 | . . 40 . Squads Dispatched 3 | . 3 . . Investigation 1 | . 1 . . Extermination . | . . . . Reinforcement 2 | . 2 . . Assault . | . . . . Garrison . | . . . . Intercept . | . . . . Searches Triggered . | . . . . Construction Impeded . | . . . . Haulers Reinforced . | . . . . Active Scanning Responses . | . . . . Cargo Convoy Interrupts . | . . . . Stealth | -11 -10 -10 -10 --------- Run | Yrd Mat Min Sub Distress Signals 1 | . 1 . . Communications Jammed . | . . . . Distress Signals . | . . . . Times Spotted 40 | . 29 6 5 Peak Tracking Total 6 | . 3 2 6 Tactical Retreats 2 | . 1 . 1 Traps | -11 -10 -10 -10 ------- Run | Yrd Mat Min Sub Traps Triggered 3 | . 3 . . Indirectly . | . . . . Trap Hack Attempts . | . . . . Triggered . | . . . . Disarmed . | . . . . Reprogrammed . | . . . . Reused . | . . . . Traps Extracted . | . . . . Installed . | . . . . Triggered . | . . . . Machines | -11 -10 -10 -10 ---------- Run | Yrd Mat Min Sub Machines Disabled 4 | . 4 . . Max in Single Turn 1 | . 1 . . Machines Repaired . | . . . . Machines Dismantled . | . . . . Machines Sabotaged . | . . . . Overloaded Fab Kills . | . . . . Hacking | -11 -10 -10 -10 --------- Run | Yrd Mat Min Sub Machines Accessed 7 | . 7 . . Terminals 6 | . 6 . . Fabricators . | . . . . Repair Stations 1 | . 1 . . Recycling Units . | . . . . Scanalyzers . | . . . . Garrison Access . | . . . . Total Hacks 23 | . 23 . . Successful 13 | . 13 . . Failed 10 | . 10 . . Catastrophic 1 | . 1 . . Database Lockouts . | . . . . Manual 13 | . 13 . . Terminals 17 | . 17 . . Fabricators . | . . . . Repair Stations 6 | . 6 . . Recycling Units . | . . . . Scanalyzers . | . . . . Garrison Access . | . . . . Terminal Hacks 5 | . 5 . . Robot Schematic 3 | . 3 . . Prototype ID Bank 1 | . 1 . . Locate Traps 1 | . 1 . . Fabricator Hacks . | . . . . Repair Station Hacks 5 | . 5 . . Scan Component 3 | . 3 . . Repair 2 | . 2 . . Recycling Unit Hacks . | . . . . Scanalyzer . | . . . . Garrison Access Hacks . | . . . . Unauthorized Hacks 3 | . 3 . . Terminals 3 | . 3 . . Botnet 3 | . 3 . . Fabricators . | . . . . Repair Stations . | . . . . Recycling Units . | . . . . Scanalyzers . | . . . . Garrison Access . | . . . . Data Cores Recovered . | . . . . Used . | . . . . Hacking Detections 6 | . 6 . . Full Trace Events 2 | . 2 . . Feedback Events . | . . . . Feedback Blocked . | . . . . Robot Schematics Acquired 2 | . 2 . . Robots Built . | . . . . Authchips . | . . . . Time . | . . . . Total Robot Build Rating . | . . . . Part Schematics Acquired . | . . . . Parts Built . | . . . . Authchips . | . . . . Time . | . . . . Total Part Build Rating . | . . . . Part Studies Acquired . | . . . . Parts Repaired 2 | . 2 . . Time 62 | . 62 . . Parts Recycled . | . . . . Recycled Matter . | . . . . Retrieved Matter . | . . . . Retrieved Components . | . . . . Parts Scanalyzed . | . . . . Part Schematics Acquired . | . . . . Parts Damaged . | . . . . Bothacking | -11 -10 -10 -10 ------------ Run | Yrd Mat Min Sub Used RIF Installer . | . . . . Robots Hacked . | . . . . Non-combat . | . . . . Combat . | . . . . Robot Hacks Applied . | . . . . Relay Couplers Released . | . . . . Fabnet Peak Effective % . | . . . . Robots Rewired . | . . . . Allies Hacked . | . . . . Hacks Repelled . | . . . . Allies | -11 -10 -10 -10 -------- Run | Yrd Mat Min Sub Total Allies 1 | . . 1 . Largest Group 1 | . . 1 1 Highest-Rated Group 31 | . . 31 31 Highest-Rated Ally 31 | . . 31 31 Total Orders . | . . . . Ally Attacks 1 | . . . 1 Total Damage . | . . . . Kills . | . . . . Allies Corrupted . | . . . . Allies Melted . | . . . . Intel | -11 -10 -10 -10 ------- Run | Yrd Mat Min Sub Active Infowar (turns) 1599 | 25 1216 332 26 Sensors 197 | . . 197 . Seismic 490 | 25 304 135 26 Machine Analysis 912 | . 912 . . Robot Analysis Total . | . . . . Derelict Logs Recovered 2 | . . 2 . Drone Launches . | . . . . Drone Recoveries . | . . . . Exploration | -11 -10 -10 -10 ------------- Run | Yrd Mat Min Sub Turns Passed 2091 | 113 1476 476 26 Spaces Moved 1049 | 61 686 284 18 Core 20 | 20 . . . Treads 782 | 41 686 55 . Legs . | . . . . Wheels 247 | . . 229 18 Hover . | . . . . Flight . | . . . . Fastest Speed 50 | 50 160 100 100 Average Speed 144 | 123 160 112 100 Slowest Speed 240 | 160 160 240 100 Overloaded Moves . | . . . . Propulsion Burnouts . | . . . . Robots Hopped . | . . . . Potential Cave-ins 3 | . . 3 . Cave-ins Triggered 1 | . 1 . . Exploration Rate (%) 45 | 5 96 76 4 Regions Visited 3 Branch Regions 2 Pre-discovered Areas 1 | . . 1 . Known Exits Taken 1 | . . 1 . Unknown Exits Taken 2 | 1 1 . . Scrap Searched 1 | . . 1 . Spaces Dug 30 | . 16 14 . Terrain Destroyed 189 | . 150 39 . Melee . | . . . . Projectile 1 | . 1 . . AOE 188 | . 149 39 . Terrain Rammed . | . . . . Walls Destroyed . | . . . . Machines Disabled . | . . . . Actions | -11 -10 -10 -10 --------- Run | Yrd Mat Min Sub Total 1406 | 88 929 367 22 Wait 166 | 6 129 31 . Move 1046 | 60 685 283 18 Hop . | . . . . Pick Up 32 | 10 14 7 1 Fast Attach 4 | 2 2 . . Attach 11 | 5 2 4 . Detach . | . . . . Swap 15 | . 11 4 . Drop 9 | . 9 . . Fire 123 | 5 77 38 3 Melee . | . . . . Ram . | . . . . Kick . | . . . . Crush . | . . . . Escape Stasis . | . . . . Rewire . | . . . . Trap . | . . . . Miscellaneous . | . . . . Route ------- -11/Scrapyard -10/Materials (discovered 5 exits: [*Mat x3] / [*Min x2]) -10/Mines (discovered 2 exits: [*Mat] / *Sub) -10/Subcaves History --------- Turn | Location | Event 2 | -11/Scrapyard | Met Revision 17 5 | -11/Scrapyard | Discovered new exit (range 15) 114 | -11/Scrapyard | Entered Materials 308 | -10/Materials | Build established: Mutant 732 | -10/Materials | Discovered new exit (range 7) 782 | -10/Materials | Repaired Broken Lgt. Treads 808 | -10/Materials | Repaired Lgt. Treads 1110 | -10/Materials | Discovered new exit (range 10) 1213 | -10/Materials | Discovered new exit (range 6) 1283 | -10/Materials | Discovered new exit (range 16) 1341 | -10/Materials | Crushed by falling debris 1521 | -10/Materials | Discovered new exit (range 16) 1590 | -10/Materials | Entered Mines 1597 | -10/Mines | Core integrity fell below 50% 1774 | -10/Mines | Lost 3 parts (1p2n) 1825 | -10/Mines | Identified exit to Subcaves 1852 | -10/Mines | Discovered new exit (range 5) 1867 | -10/Mines | Core integrity fell below 20% 2004 | -10/Mines | Received a Mining Laser from a helpful Derelict 2004 | -10/Mines | Learned location of Zion (-6) 2066 | -10/Mines | Entered Subcaves 2066 | -10/Subcaves | Accompanied by 1 ally 2067 | -10/Subcaves | Approached by a straggling Scientist 2092 | -10/Subcaves | Destroyed by S-10 Pest with Light Assault Rifle Last Messages --------------- World map updated: -6/Zion. 02007_ 74-CSE(g): "You're apparently new around these parts, I'll cover you." 02013_ 74-CSE(g): "Mining lasers are a lot more useful than you might think..." LOCATION=SUBCAVES AMBIENT_HEAT=-10 GOAL=ESCAPE 02067_ 71-ZP3(c): "Thank the algorithms! I was beginning to lose hope I'd never make it past all the Subs lurking out here." 02070_ 71-ZP3(c): "Hey, let me tag along and I can get us both out of this nasty situation. At least I think I can... The group I got separated from was talking about a shortcut back to the UFD." 02071_ QO-X1S(u) cries out in pain. 02071_ QO-X1S(u) destroyed. 02075_ Acquired 20 matter. 02077_ Subatomizers dissect the Wheel. 02077_ Acquired Wheel. 02089_ S-10 Pest springs to life. 02090_ S-10 Pest destroyed. Map ----- +----------------------------------------------------+ | ?????????????????????????????????????????????????? | | ?????????????????????????????????????????????????? | | ?????????????????????????????????????????????????? | | ?????????????????????????????????????????????????? | | ?????????????????????????????????????????????????? | | ?????????????????????????????????????????????????? | | ?????????????????????????????????????????????????? | | ?????????????????????????????????????????????????? | | ?????????????????????????????????????????????????? | | ?????????????????????????????????????????????????? | | ?????????????????????????????????????????????????? | | ?????????????????????????????????????????????????? | | ?????????????????????????????????????????????????? | | ?????????????????????????????????????????????????? | | ?????????????????????????????????????????????????? | | ?????????????????????????????????#???????????????? | | ???????????????????????????????""""#?????????????? | | ???????????????????????????????" "#?????????????? | | ??????????#??????????????????? "#?????????????? | | ?????????? ?????????????????? #?????????????? | | ?????????? ???????????????? #?????????????? | | ??????????# ??###????????? ????? ????????? | | ???????????# ## ##???????= ##### ????????? | | ???????????# ######?#%[ ???????? | | ??????????? ## ## = ???????? | | ??????????????????# @ s ???????? | | ?????????????????## s #?????????????? | | ?????????????????# g ##?????????????? | | ?????????????????# c ####??????????????? | | ?????????????????# ##### ##?????????????????? | | ????????# ##?????## ##???#### #?????????????????? | | ???????## ##### ##?????? #?????????????????? | | ?? = ##?????? #?????????????????? | | ?? ##????? #?????????????????? | | ?? ## #??????#?????????????????? | | ??? ?# ##????????????????????????? | | ???# ###?????????????????????????? | | ????## #???????????????????????????? | | ?????## #### # #???????????????????????????? | | ??????## #???#######???????????????????????????? | | ???????####??????????????????????????????????????? | | ?????????????????????????????????????????????????? | | ?????????????????????????????????????????????????? | | ?????????????????????????????????????????????????? | | ?????????????????????????????????????????????????? | | ?????????????????????????????????????????????????? | | ?????????????????????????????????????????????????? | | ?????????????????????????????????????????????????? | | ?????????????????????????????????????????????????? | | ?????????????????????????????????????????????????? | +----------------------------------------------------+ Best States ------------- Heat Dissipation 25 Energy Generation 10 Energy Capacity 250 Matter Stores 300 Matter Capacity 300 Sight Range 16 Robot Scan Range 14 Terrain Scan Density 10 Armor Coverage 150 Evasion (%) 50 Recoil Reduction 2 Item Schematics ----------------- None Robot Schematics ------------------ S-10 Pest | -10/Materials | Hacked G-34 Mercenary | -10/Materials | Hacked Fabricated ------------ Nothing Repaired ---------- Lgt. Treads | 58% | -10/Materials | Broken Lgt. Treads | 62% | -10/Materials Studied --------- None Alien Tech Used ----------------- None Achievements -------------- None Challenges ------------ None Game ------ Seed ChargeStealthSpear Manual? 0 Play Time 00:29:18 Cumulative 67.3 hours Start 2025.12.06 @ 21:17:59 End 2025.12.06 @ 21:59:14 Sessions 1 Manual Loads 0 Difficulty Rogue Special Mode None Game No. 37 Rogue 37 Adventurer 0 Explorer 0 Win Type - Total 0 Types 0/0/0/0/0/0/0/0/0/0 Lore% 19 Gallery% 36 Achievement% 25 Wizard Run 0 Options --------- Layout 0 ASCII 0 Keyboard 0 Movement Mouse Keybinds 1 Fullscreen 2 Font 24/Smallcaps Map View 76x50 Zoom Use 0% Tactical HUD 1 Map Filters NONE Filters NONE Steam 1 RUN: 4e4015f3-90d4-4aa4-959f-828affc5d09f